fUSD/lending_fUSD_20250623
["ID","MTS","AMOUNT","RATE_DAILY","PERIOD"]
[367142766,1750669836763,-500.0,0.00023537,2]
[367142768,1750669836772,-500.0,0.00023537,2]
[367142770,1750669836781,-57.58078967,0.00023537,2]
[367142853,1750669837558,-442.41921033,0.00023537,2]
[367142854,1750669837568,-500.0,0.00023537,2]
[367142855,1750669837578,-500.0,0.00023537,2]
[367142856,1750669837587,-509.78594114,0.00023537,2]
[367142857,1750669837597,-207.4,0.00023537,2]
[367142858,1750669837606,-151.0,0.00023537,2]
[367142859,1750669837617,-151.0,0.00023537,2]
[367142860,1750669837626,-151.0,0.00023537,2]
[367142861,1750669837971,-151.0,0.00023537,2]
[367142862,1750669838007,-151.0,0.00023537,2]
[367142864,1750669838017,-151.0,0.00023537,2]
[367142866,1750669838027,-151.0,0.00023537,2]
[367142868,1750669838036,-151.0,0.00023537,2]
[367142870,1750669838045,-151.0,0.00023537,2]
[367142872,1750669838056,-151.0,0.00023537,2]
[367142874,1750669838066,-151.0,0.00023537,2]
[367142876,1750669838075,-151.0,0.00023537,2]
[367142878,1750669838084,-151.0,0.00023537,2]
[367142880,1750669838093,-151.0,0.00023537,2]
[367142882,1750669838102,-151.0,0.00023537,2]
[367142884,1750669838111,-151.0,0.00023537,2]
[367142886,1750669838120,-151.0,0.00023537,2]
[367142889,1750669838130,-151.0,0.00023537,2]
[367142892,1750669838139,-151.0,0.00023537,2]
[367142894,1750669838150,-151.0,0.00023537,2]
[367142896,1750669838160,-631.78,0.00023551,2]
[367142898,1750669838171,-7407.141672,0.00023592,2]
[367142900,1750669838180,-858.71827679,0.00023622,2]
[367142902,1750669838190,-7681.20591386,0.00023647,2]
[367142904,1750669838199,-501.53938039,0.00023695,2]
[367142906,1750669838209,-7965.41053268,0.00023702,2]
[367142908,1750669838219,-3468.18124424,0.00023712,2]
[367142910,1750669838229,-8260.13072239,0.00023757,2]
[367142912,1750669838239,-3798.83481452,0.00023812,2]
[367142914,1750669838248,-858.71827679,0.00023888,2]
[367142916,1750669838258,-152.25,0.00023986,2]
[367142918,1750669838267,-204.0,0.00023994,8]
[367142920,1750669838276,-158.24,0.00024,2]
[367142922,1750669838285,-157.0,0.00024,5]
[367142924,1750669838294,-239.62702832,0.00024003,10]
[367142926,1750669838303,-858.71827679,0.00024129,2]
[367142928,1750669838313,-3468.18124417,0.00024232,2]
[367142930,1750669838322,-1376.025154,0.00024303,4]
[367142932,1750669838331,-858.71827682,0.00024418,2]
[367142934,1750669838341,-239.62702832,0.00024521,11]
[367142936,1750669838350,-200.0,0.00024527,2]
[367142938,1750669838359,-200.0,0.00024602,2]
[367142940,1750669838368,-150.0,0.00024633,2]
[367142942,1750669838377,-150.0,0.00024633,2]
[367142944,1750669838387,-150.0,0.00024633,2]
[367142946,1750669838399,-2000.0,0.00024658,15]
[367142948,1750669838408,-2500.0,0.00024685,2]
[367142950,1750669838417,-1000.0,0.0002469,2]
[367142952,1750669838426,-155.0,0.000247,4]
[367142954,1750669838437,-163.95926574,0.000247,2]
[367142956,1750669838447,-159.3267973,0.00024705,2]
[367142958,1750669838456,-3468.18124417,0.00024752,2]
[367142960,1750669838466,-500.0,0.00024773,2]
[367142961,1750669838475,-472.36031181,0.00024773,2]
[367143009,1750669838955,-27.63968819,0.00024773,2]
[367143010,1750669838965,-514.08355955,0.00024773,2]
[367143011,1750669838974,-500.0,0.00024773,2]
[367143012,1750669838983,-7272.87316536,0.00024773,2]
[367143013,1750669838992,-36162.4633,0.00024785,2]
[367143014,1750669839002,-1000.0,0.00024785,2]
[367143015,1750669839011,-500.0,0.00024789,2]
[367143016,1750669839020,-370.44899747,0.00024789,2]
[367143017,1750669839029,-500.0,0.00024789,2]
[367143018,1750669839038,-500.0,0.00024789,2]
[367143019,1750669839047,-500.0,0.00024789,2]
[367143020,1750669839058,-500.0,0.00024789,2]
[367143021,1750669839067,-172.54460807,0.00024789,2]
[367143022,1750669839076,-500.0,0.00024789,2]
[367143023,1750669839085,-500.0,0.00024789,2]
[367143024,1750669839094,-500.0,0.00024789,2]
[367143025,1750669839103,-500.0,0.00024789,2]
[367143027,1750669839113,-500.0,0.00024789,2]
[367143029,1750669839122,-500.0,0.00024789,2]
[367143031,1750669839132,-500.0,0.00024789,2]
[367143033,1750669839142,-500.0,0.00024789,2]
[367143035,1750669839151,-500.0,0.00024789,2]
[367143037,1750669839161,-500.0,0.00024789,2]
[367143039,1750669839170,-500.0,0.00024789,2]
[367143041,1750669839181,-500.0,0.00024789,2]
[367143043,1750669839190,-500.0,0.00024789,2]
[367143046,1750669839200,-500.0,0.00024789,2]
[367143048,1750669839209,-500.0,0.00024789,2]
[367143050,1750669839218,-500.0,0.00024789,2]
[367143052,1750669839227,-500.0,0.00024789,2]
[367143054,1750669839236,-583.88801618,0.00024789,2]
[367143056,1750669839245,-500.0,0.00024789,2]
[367143058,1750669839254,-500.0,0.00024789,2]
[367143060,1750669839263,-500.0,0.0002479,2]
[367143062,1750669839273,-188162.4183,0.0002479,2]
[367143064,1750669839283,-1000.0,0.000248,2]
[367143066,1750669839292,-1000.0,0.000248,2]
[367143068,1750669839301,-1000.0,0.000248,2]
[367143070,1750669839311,-1000.0,0.000248,2]
[367143072,1750669839320,-1000.0,0.000248,2]
[367143074,1750669839329,-1000.0,0.000248,2]
[367143076,1750669839339,-1000.0,0.000248,2]
[367143079,1750669839349,-1000.0,0.000248,2]
[367143082,1750669839358,-1000.0,0.000248,2]
[367143084,1750669839367,-1000.0,0.000248,2]
[367143087,1750669839378,-1000.0,0.000248,2]
[367143090,1750669839392,-1000.0,0.000248,2]
[367143092,1750669839401,-1000.0,0.000248,2]
[367143094,1750669839410,-1000.0,0.000248,2]
[367143096,1750669839419,-1000.0,0.000248,2]
[367143098,1750669839428,-1000.0,0.000248,2]
[367143100,1750669839437,-1000.0,0.000248,2]
[367143102,1750669839447,-1000.0,0.000248,2]
[367143104,1750669839457,-320.90416896,0.000248,2]
[367143106,1750669839467,-150.0,0.000248,2]
[367143108,1750669839477,-511.9270469,0.000248,2]
[367143110,1750669839486,-151.0,0.000248,2]
[367143112,1750669839495,-200.0,0.000248,9]
[367143115,1750669839505,-1684.37543,0.000248,2]
[367143117,1750669839514,-6804.5290409,0.000248,2]
[367143119,1750669839523,-185291.260924,0.000248,2]
[367143121,1750669839532,-181457.123419,0.000248,2]
[367143123,1750669839541,-270.12096926,0.00024817,2]
[367143125,1750669839550,-367.18699057,0.00024833,2]
[367143127,1750669839561,-500.0,0.00024833,2]
[367143129,1750669839569,-299.851074,0.00024833,2]
[367143132,1750669839578,-500.0,0.00024857,2]
[367143135,1750669839587,-500.0,0.00024857,2]
[367143139,1750669839596,-332.5226646,0.00024873,2]
[367143143,1750669839606,-502.54613793,0.00024873,2]
[367143146,1750669839616,-500.0,0.00024873,2]
[367143149,1750669839625,-180.43655616,0.00024873,2]
[367143152,1750669839634,-500.35786531,0.00024873,2]
[367143155,1750669839644,-150.0,0.00024882,4]
[367143158,1750669839653,-668.31653127,0.0002489,2]
[367143161,1750669839662,-958.0,0.000249,2]
[367143164,1750669839671,-879.89,0.000249,2]
[367143167,1750669839680,-500.0,0.000249,9]
[367143169,1750669839689,-53502.95805706,0.000249,2]
[367143178,1750669839730,-1975.11884614,0.000249,2]
[367143181,1750669839739,-167.35980489,0.000249,2]
[367143184,1750669839748,-278.78599724,0.000249,2]
[367143187,1750669839757,-156.587,0.00024906,2]
[367143190,1750669839766,-215.0738,0.00024906,2]
[367143193,1750669839775,-500.0,0.00024933,2]
[367143196,1750669839784,-151.37,0.0002497,2]
[367143199,1750669839793,-23161.4076155,0.0002498,2]
[367143202,1750669839802,-18492.6923011,0.0002498,2]
[367143205,1750669839812,-50395.17418512,0.0002499,2]
[367143208,1750669839820,-161.0,0.00025,4]
[367143211,1750669839829,-3733.84,0.00025,8]
[367143214,1750669839838,-150.344,0.00025,8]
[367143217,1750669839848,-239.62702832,0.00025038,12]
[367143220,1750669839857,-150.0,0.00025049,2]
[367143223,1750669839867,-204.0,0.00025085,9]
[367143227,1750669839876,-23161.4076155,0.000251,2]
[367143230,1750669839886,-1000.0,0.00025102,2]
[367143233,1750669839895,-150.0,0.00025131,4]
[367143236,1750669839904,-170.91,0.00025205,2]
[367143238,1750669839913,-864.0,0.00025265,2]
[367143241,1750669839925,-3468.18124417,0.00025272,2]
[367143244,1750669839935,-270.12096925,0.00025291,2]
[367143247,1750669839944,-150.0,0.00025379,4]
[367143250,1750669839953,-500.0,0.00025381,2]
[367143253,1750669839962,-18492.6923011,0.00025395,2]
[367143256,1750669839972,-151.0,0.00025542,2]
[367143259,1750669839981,-1151.0,0.00025547,2]
[367143263,1750669839992,-239.62702832,0.00025555,13]
[367143266,1750669840002,-150.0,0.00025628,4]
[367143269,1750669840011,-156.71,0.00025642,2]
[367143272,1750669840021,-270.12096925,0.00025766,2]
[367143275,1750669840030,-3468.18124417,0.00025792,2]
[367143278,1750669840039,-150.0,0.00025877,4]
[367143281,1750669840049,-150.0,0.00026001,4]
[367143284,1750669840058,-239.62702832,0.00026072,14]
[367143286,1750669840067,-278.78599718,0.00026076,2]
[367143289,1750669840077,-879.89,0.000261,2]
[367143292,1750669840086,-150.0,0.00026126,4]
[367143295,1750669840095,-204.0,0.00026176,11]
[367143297,1750669840105,-270.12096925,0.0002624,2]
[367143299,1750669840114,-162.380719,0.00026275,2]
[367143309,1750669840201,-223.0315306,0.00026275,2]
[367143311,1750669840211,-3468.18124417,0.00026313,2]
[367143313,1750669840220,-150.0,0.00026375,4]
[367143315,1750669840229,-150.0,0.00026419,2]
[367143317,1750669840238,-239.62702832,0.0002659,15]
[367143319,1750669840247,-316.81,0.00026591,2]
[367143321,1750669840256,-150.99,0.00026591,2]
[367143323,1750669840265,-150.99,0.00026591,2]
[367143325,1750669840275,-250.0,0.00026619,2]
[367143327,1750669840284,-150.0,0.00026623,4]
[367143329,1750669840294,-302.35,0.00026676,2]
[367143331,1750669840306,-500.0,0.00026712,2]
[367143333,1750669840315,-270.12096925,0.00026715,2]
[367143335,1750669840324,-9813.6522998,0.00026742,2]
[367143540,1750669842286,204.0,0.00019629,2]
[367143583,1750669842695,-392.26,0.00026742,2]
[367143898,1750669845926,-779.81344171,0.000247,2]
[367143922,1750669846142,-5044.46569866,0.000247,2]
[367143924,1750669846154,-12955.4953157,0.00026742,2]
[367143926,1750669846164,-36985.3846022,0.00026742,2]
[367143928,1750669846174,-298.81248588,0.00026742,2]
[367143930,1750669846184,-511.92704689,0.00026742,2]
[367143932,1750669846193,-23161.4076155,0.0002678,2]
[367143934,1750669846206,-422.03059841,0.0002678,2]
[367143936,1750669846215,-151.0,0.0002679,7]
[367143938,1750669846224,-151.0,0.0002679,7]
[367143941,1750669846234,-151.0,0.0002679,7]
[367143943,1750669846243,-151.0,0.0002679,7]
[367143945,1750669846252,-151.0,0.0002679,7]
[367143947,1750669846262,-151.0,0.0002679,7]
[367143949,1750669846271,-151.0,0.0002679,7]
[367143951,1750669846280,-151.0,0.0002679,7]
[367143953,1750669846290,-151.0,0.0002679,7]
[367143955,1750669846299,-151.0,0.0002679,7]
[367143957,1750669846309,-151.0,0.0002679,7]
[367143959,1750669846318,-171.218247,0.0002679,7]
[367143961,1750669846328,-171.218247,0.0002679,7]
[367143963,1750669846338,-151.0,0.0002679,7]
[367143965,1750669846348,-151.0,0.0002679,7]
[367143967,1750669846357,-151.0,0.0002679,7]
[367143969,1750669846367,-151.0,0.0002679,7]
[367143971,1750669846375,-151.0,0.0002679,7]
[367143973,1750669846385,-271.264642,0.0002679,7]
[367143975,1750669846398,-271.264642,0.0002679,7]
[367143977,1750669846409,-151.0,0.0002679,7]
[367143979,1750669846418,-151.0,0.0002679,7]
[367143981,1750669846427,-92645.6304618,0.0002679,2]
[367143983,1750669846438,-110956.153806,0.0002679,2]
[367143985,1750669846447,-1996.1373219,0.0002679,2]
[367144121,1750669864268,590.5687293,0.00027397,120]
[367144269,1750669924558,-151.829647,0.000268,7]
[367144270,1750669924580,-151.0,0.000268,7]
[367144271,1750669924602,-169.109946,0.000268,7]
[367144272,1750669924624,-290.567398,0.000268,7]
[367144273,1750669924645,-169.109946,0.000268,7]
[367144274,1750669924665,-170.110021,0.000268,7]
[367144275,1750669924687,-170.110021,0.000268,7]
[367144276,1750669924708,-151.0,0.000268,7]
[367144277,1750669924730,-151.0,0.000268,7]
[367144278,1750669924752,-151.0,0.000268,7]
[367144279,1750669924772,-151.0,0.000268,7]
[367144280,1750669924794,-151.0,0.000268,7]
[367144281,1750669924816,-151.0,0.000268,7]
[367144282,1750669924838,-151.0,0.000268,7]
[367144283,1750669924859,-151.0,0.000268,7]
[367144284,1750669924880,-151.693438,0.000268,7]
[367144285,1750669924903,-151.0,0.000268,7]
[367144286,1750669924924,-151.0,0.000268,7]
[367144287,1750669924945,-151.0,0.000268,7]
[367144288,1750669924967,-151.0,0.000268,7]
[367144289,1750669924990,-151.0,0.000268,7]
[367144290,1750669925010,-151.0,0.000268,7]
[367144291,1750669925032,-151.0,0.000268,7]
[367144292,1750669925053,-151.0,0.000268,7]
[367144293,1750669925074,-151.0,0.000268,7]
[367144294,1750669925095,-213.15894,0.000268,7]
[367144295,1750669925117,-151.0,0.000268,7]
[367144296,1750669925138,-151.0,0.000268,7]
[367144297,1750669925161,-151.0,0.000268,7]
[367144298,1750669925183,-151.0,0.000268,7]
[367144299,1750669925206,-151.0,0.000268,7]
[367144300,1750669925228,-167.333814,0.000268,7]
[367144301,1750669925250,-485.686368,0.000268,7]
[367144302,1750669925272,-485.686368,0.000268,7]
[367144303,1750669925292,-151.0,0.000268,7]
[367144304,1750669925313,-151.0,0.000268,7]
[367144305,1750669925333,-600.604093,0.000268,7]
[367144311,1750670080069,297.33,0.00013699,2]
[367144315,1750670128022,250.0,0.00015,2]
[367144316,1750670129092,300.0,0.00017,2]
[367144317,1750670130204,350.0,0.00019,2]
[367144323,1750670194015,1964.18890916,0.000201,2]
[367144324,1750670194039,1364.34109084,0.000201,2]
[367144329,1750670341810,2089.54130772,0.0001199,2]
[367144333,1750670495539,161.15,0.00026431,120]
[367144334,1750670708131,16546.11760144,0.00014,2]
[367144335,1750670708157,20000.0,0.00014,2]
[367144336,1750670708184,20000.0,0.00014,2]
[367144337,1750670708210,20000.0,0.00014,2]
[367144338,1750670708237,20000.0,0.00014,2]
[367144339,1750670708262,20000.0,0.00014,2]
[367144340,1750670708287,13471.77572761,0.00014,2]
[367144346,1750670890353,-297.33,0.00020187,2]
[367144347,1750670890376,-380.43869516,0.00020555,2]
[367144348,1750670890399,-400.0,0.00021,2]
[367144349,1750670890422,-375.23130484,0.00021055,2]
[367144351,1750670941748,246.0,0.00026,120]
[367144356,1750671025798,8411.86176718,0.00027397,120]
[367144374,1750671031789,-670.01657161,0.00021667,2]
[367144375,1750671031800,-321.85796766,0.00021667,2]
[367144376,1750671031810,-157.88,0.0002272,2]
[367144377,1750671031819,-200.0,0.00022835,2]
[367144378,1750671031829,-1262.85,0.00022854,2]
[367144379,1750671031839,-1052.7564306,0.00022896,2]
[367144380,1750671031850,-600.0,0.00022896,2]
[367144381,1750671031888,-385.63,0.00022896,2]
[367144382,1750671031900,-276.65889505,0.00022896,2]
[367144383,1750671031912,-435.95467435,0.00022896,2]
[367144384,1750671031922,-142.13322325,0.00022962,2]
[367144385,1750671031945,-391.86677675,0.00022962,2]
[367144386,1750671031954,-179.7070849,0.00022993,2]
[367144387,1750671031964,-28.42613835,0.00023097,2]
[367144388,1750671031976,-138.84386165,0.00023097,2]
[367144389,1750671031986,-160.0,0.00023208,2]
[367144390,1750671031995,-211.0,0.00023208,2]
[367144391,1750671032006,-205.0,0.00023267,2]
[367144392,1750671032016,-832.8,0.00023294,2]
[367144393,1750671032026,-610.0,0.00023417,2]
[367144394,1750671032035,-1200.0,0.00023464,2]
[367144395,1750671032044,-300.0,0.00023465,2]
[367144397,1750671032054,-300.0,0.00023465,2]
[367144399,1750671032063,-19651.95592827,0.00023467,2]
[367144401,1750671032073,-887.2929151,0.00023471,2]
[367144403,1750671032082,-1996.0,0.00023493,2]
[367144405,1750671032092,-161.15,0.00023494,2]
[367144407,1750671032101,-207.4,0.00023537,2]
[367144409,1750671032110,-7142.856,0.00023537,2]
[367144411,1750671032119,-10588.46,0.00023546,2]
[367144412,1750671032128,-156.71,0.00023569,2]
[367144413,1750671032140,-7407.141672,0.00023592,2]
[367144414,1750671032150,-250.0,0.00023618,2]
[367144416,1750671032159,-1996.0,0.0002364,2]
[367144418,1750671032169,-7681.20591386,0.00023647,2]
[367144420,1750671032178,-7965.41053268,0.00023702,2]
[367144422,1750671032187,-150.0,0.00023719,2]
[367144425,1750671032196,-151.0,0.00023748,2]
[367144428,1750671032205,-151.0,0.00023748,2]
[367144431,1750671032215,-151.0,0.00023748,2]
[367144433,1750671032224,-151.0,0.00023748,2]
[367144435,1750671032234,-151.0,0.00023748,2]
[367144438,1750671032244,-151.0,0.00023748,2]
[367144440,1750671032253,-151.0,0.00023748,2]
[367144442,1750671032262,-151.0,0.00023748,2]
[367144443,1750671032271,-170.94288873,0.00023748,2]
[367144446,1750671032282,-151.0,0.00023748,2]
[367144448,1750671032292,-151.0,0.00023748,2]
[367144449,1750671032301,-151.0,0.00023748,2]
[367144451,1750671032311,-151.0,0.00023748,2]
[367144453,1750671032320,-151.0,0.00023748,2]
[367144455,1750671032329,-151.0,0.00023748,2]
[367144457,1750671032339,-151.0,0.00023748,2]
[367144459,1750671032348,-151.0,0.00023748,2]
[367144460,1750671032358,-500.0,0.00023748,2]
[367144461,1750671032367,-151.0,0.00023748,2]
[367144462,1750671032376,-151.0,0.00023748,2]
[367144463,1750671032386,-500.0,0.00023748,2]
[367144464,1750671032396,-500.0,0.00023748,2]
[367144465,1750671032405,-151.0,0.00023748,2]
[367144466,1750671032415,-500.0,0.00023748,2]
[367144467,1750671032424,-151.0,0.00023748,2]
[367144468,1750671032433,-500.0,0.00023748,2]
[367144469,1750671032442,-500.0,0.00023748,2]
[367144470,1750671032451,-1000.0,0.00023748,2]
[367144471,1750671032465,-500.0,0.00023748,2]
[367144472,1750671032474,-151.0,0.00023748,2]
[367144473,1750671032484,-500.0,0.00023748,2]
[367144474,1750671032493,-151.0,0.00023748,2]
[367144475,1750671032502,-500.0,0.00023748,2]
[367144476,1750671032512,-151.0,0.00023748,2]
[367144477,1750671032521,-151.0,0.00023748,2]
[367144478,1750671032531,-500.0,0.00023748,2]
[367144479,1750671032540,-500.0,0.00023748,2]
[367144480,1750671032550,-500.0,0.00023748,2]
[367144481,1750671032559,-500.0,0.00023748,2]
[367144482,1750671032568,-500.0,0.00023748,2]
[367144483,1750671032578,-540.62827148,0.00023748,2]
[367144484,1750671032588,-668.65185757,0.00023748,2]
[367144485,1750671032597,-8260.13072239,0.00023757,2]
[367144486,1750671032607,-23900.0,0.00023762,2]
[367144487,1750671032618,-1000.0,0.00023785,2]
[367144488,1750671032628,-151.0,0.00023803,2]
[367144489,1750671032637,-8565.75555911,0.00023812,2]
[367144490,1750671032646,-150.0,0.00023813,2]
[367144491,1750671032656,-152.25,0.00023836,2]
[367144492,1750671032666,-151.0,0.00023858,2]
[367144493,1750671032675,-1996.0,0.00023863,2]
[367144494,1750671032685,-5592.3402728,0.00023867,2]
[367144495,1750671032695,-2031.13,0.00023882,2]
[367144496,1750671032705,-238.52912364,0.000239,10]
[367144497,1750671032715,-151.0,0.00023913,2]
[367144498,1750671032724,-1996.0,0.00023963,2]
[367144499,1750671032734,-151.0,0.00023968,2]
[367144500,1750671032743,-1086.55074267,0.00023995,2]
[367144501,1750671032752,-158.24,0.00024,2]
[367144502,1750671032761,-5000.00056729,0.00024,5]
[367144503,1750671032771,-150.0,0.00024115,2]
[367144504,1750671032780,-150.0,0.00024115,2]
[367144505,1750671032790,-150.0,0.00024115,2]
[367144506,1750671032799,-1996.0,0.00024267,2]
[367144507,1750671032808,-238.52912342,0.00024279,10]
[367144508,1750671032818,-205.0,0.00024415,3]
[367144509,1750671032827,-834.59255148,0.0002455,2]
[367144510,1750671032836,-1996.0,0.00024568,2]
[367144511,1750671032846,-27789.75461838,0.00024581,2]
[367144512,1750671032855,-3898.5544,0.00024585,2]
[367144513,1750671032865,-1000.0,0.00024585,2]
[367144514,1750671032874,-12020.13056849,0.00024589,2]
[367144515,1750671032883,-2500.0,0.00024589,2]
[367144516,1750671032893,-244.49,0.0002459,2]
[367144517,1750671032902,-244.49,0.0002459,2]
[367144518,1750671032911,-6333.79,0.0002459,2]
[367144519,1750671032921,-6769.8679,0.0002459,2]
[367144520,1750671032930,-1000.0,0.0002459,2]
[367144521,1750671032939,-74280.0,0.000246,2]
[367144522,1750671032949,-250.0,0.00024629,2]
[367144523,1750671032959,-276.67964544,0.00024649,2]
[367144524,1750671032968,-718.02,0.00024657,2]
[367144525,1750671032977,-1073.95,0.00024657,2]
[367144526,1750671032986,-2000.0,0.00024658,15]
[367144527,1750671032995,-150.0,0.00024658,2]
[367144528,1750671033005,-238.52912342,0.00024659,11]
[367144529,1750671033014,-500.0,0.00024673,2]
[367144530,1750671033023,-1996.0,0.00024673,2]
[367144531,1750671033034,-244.49,0.00024679,2]
[367144532,1750671033043,-244.49,0.00024679,2]
[367144533,1750671033053,-244.49,0.00024679,2]
[367144534,1750671033063,-6333.79,0.0002468,2]
[367144535,1750671033072,-2097.41,0.00024685,2]
[367144536,1750671033082,-490.0,0.00024688,3]
[367144537,1750671033092,-490.0,0.00024688,3]
[367144538,1750671033101,-827.98,0.00024688,3]
[367144539,1750671033111,-490.0,0.00024688,3]
[367144540,1750671033120,-585.75,0.00024688,3]
[367144541,1750671033130,-490.0,0.00024688,3]
[367144542,1750671033141,-490.0,0.00024688,3]
[367144543,1750671033151,-1216.51,0.00024688,3]
[367144544,1750671033163,-558.63,0.00024688,3]
[367144545,1750671033173,-802.27,0.00024688,2]
[367144546,1750671033182,-490.0,0.00024688,3]
[367144547,1750671033192,-490.0,0.00024688,3]
[367144548,1750671033201,-490.0,0.00024688,3]
[367144549,1750671033210,-490.0,0.00024688,3]
[367144550,1750671033220,-490.0,0.00024689,3]
[367144551,1750671033229,-490.0,0.00024689,3]
[367144552,1750671033239,-490.0,0.00024689,3]
[367144553,1750671033248,-490.0,0.00024689,3]
[367144554,1750671033257,-490.93,0.00024689,3]
[367144555,1750671033267,-490.0,0.00024689,3]
[367144556,1750671033277,-707.79,0.00024689,3]
[367144557,1750671033286,-1604.37,0.00024689,3]
[367144558,1750671033296,-1142.47,0.00024689,3]
[367144559,1750671033306,-490.0,0.00024689,3]
[367144560,1750671033316,-1126.87,0.00024689,3]
[367144561,1750671033326,-490.0,0.00024689,3]
[367144562,1750671033336,-557.12,0.00024689,3]
[367144563,1750671033635,-1298.56,0.00024689,3]
[367144564,1750671033645,-299.21512011,0.00024689,3]
[367144565,1750671033655,-547.26,0.00024689,3]
[367144566,1750671033664,-440.0,0.00024689,3]
[367144567,1750671033679,-509.46,0.00024689,3]
[367144568,1750671033689,-490.0,0.00024689,3]
[367144569,1750671033700,-1345.74,0.00024689,3]
[367144570,1750671033710,-1643.04,0.00024689,3]
[367144571,1750671033719,-490.0,0.00024689,3]
[367144572,1750671033728,-830.36,0.00024689,3]
[367144573,1750671033738,-490.0,0.00024689,3]
[367144574,1750671033747,-525.41,0.00024689,3]
[367144575,1750671033756,-491.82890177,0.00024689,3]
[367144576,1750671033766,-1068.15,0.00024689,3]
[367144577,1750671033775,-490.0,0.00024689,3]
[367144578,1750671033799,-1225.6,0.00024689,3]
[367144579,1750671033809,-690.72,0.00024689,3]
[367144580,1750671033819,-1239.87,0.00024689,3]
[367144581,1750671033828,-1334.29,0.00024689,3]
[367144582,1750671033838,-2305.072983,0.00024689,3]
[367144583,1750671033847,-1174.6,0.00024689,3]
[367144584,1750671033857,-490.0,0.00024689,3]
[367144585,1750671033866,-1213.260132,0.00024689,3]
[367144586,1750671033876,-1035.95,0.00024689,3]
[367144587,1750671033886,-490.0,0.00024689,3]
[367144588,1750671033897,-490.0,0.00024689,3]
[367144589,1750671033907,-1440.75,0.00024689,3]
[367144590,1750671033917,-490.0,0.00024689,3]
[367144591,1750671033926,-2027.51,0.00024689,3]
[367144592,1750671033936,-794.33,0.00024689,3]
[367144593,1750671033945,-490.0,0.00024689,3]
[367144594,1750671033955,-490.0,0.00024689,3]
[367144595,1750671033964,-1437.79,0.00024689,3]
[367144596,1750671033974,-614.15,0.00024689,3]
[367144597,1750671033983,-4833.380964,0.00024689,3]
[367144598,1750671033992,-1340.2,0.00024689,3]
[367144599,1750671034001,-490.0,0.00024689,3]
[367144600,1750671034011,-490.0,0.00024689,3]
[367144601,1750671034020,-981.2,0.00024689,3]
[367144602,1750671034029,-153.55294,0.00024689,3]
[367144603,1750671034039,-601.64,0.00024689,3]
[367144604,1750671034048,-747.47,0.00024689,3]
[367144605,1750671034058,-2568.16,0.00024689,3]
[367144606,1750671034069,-1437.45,0.00024689,3]
[367144607,1750671034078,-151.476984,0.00024689,3]
[367144608,1750671034088,-1019.22,0.00024689,3]
[367144609,1750671034098,-1567.19,0.00024689,3]
[367144610,1750671034107,-1254.72,0.00024689,3]
[367144611,1750671034116,-490.0,0.00024689,3]
[367144612,1750671034125,-490.0,0.00024689,3]
[367144613,1750671034135,-1423.33,0.00024689,3]
[367144614,1750671034146,-10874.26,0.00024689,3]